bitfinex/quotes_SOLUSD_20250413
["timestamp","ask_amount","ask_price","bid_price","bid_amount"]
[1744538305646,26.626,131.45,131.42,1.90120879]
[1744538305856,18.64964886,131.44,131.38,7.6114]
[1744538306040,18.64964886,131.44,131.37,7.6118]
[1744538306238,18.64964886,131.44,131.38,2.53676729]
[1744538306848,18.64964886,131.44,131.39,1.90149982]
[1744538307163,7.6086,131.43,131.39,1.90149982]
[1744538307363,6.88,131.42,131.39,1.90149982]
[1744538308155,6.88,131.42,131.36,13.9012]
[1744538308335,6.88,131.42,131.35,7.613]
[1744538308834,6.88,131.42,131.36,2.53662098]
[1744538309151,45.28374886,131.41,131.37,1.90178454]
[1744538310254,26.6341,131.41,131.37,1.90178454]
[1744538310553,26.6341,131.41,131.34,28.69478307]
[1744538310754,16.0624,131.42,131.34,28.69478307]
[1744538310958,14.4894,131.42,131.35,2.53412376]
[1744538311146,14.4894,131.42,131.36,7.6126]
[1744538311458,14.4894,131.42,131.36,9.51436691]
[1744538312547,14.4894,131.42,131.37,1.90176691]
[1744538313065,14.4894,131.42,131.37,9.51376691]
[1744538313249,14.4894,131.42,131.37,7.612]
[1744538314676,14.4894,131.42,131.35,7.6132]
[1744538315079,14.4894,131.42,131.36,2.5327519]
[1744538315764,14.4894,131.42,131.37,1.90176082]
[1744538316672,14.4894,131.42,131.36,7.6121]
[1744538316964,14.4894,131.42,131.35,7.6132]
[1744538317373,14.4894,131.42,131.36,2.52826029]
[1744538318173,14.4894,131.42,131.35,7.6132]
[1744538318875,33.13904886,131.42,131.36,1.90177822]
[1744538320772,33.13904886,131.42,131.35,7.6132]
[1744538322974,33.13904886,131.42,131.36,9.51428105]
[1744538324085,33.13904886,131.42,131.36,7.6125]
[1744538325275,33.13904886,131.42,131.35,7.6132]
[1744538325573,33.13904886,131.42,131.36,1.90176843]
[1744538326470,33.13904886,131.42,131.36,9.51386843]
[1744538326673,33.13904886,131.42,131.36,7.6121]
[1744538326979,6.88,131.42,131.36,7.6121]
[1744538327179,6.88,131.42,131.36,26.6437]
[1744538327777,6.88,131.42,131.37,1.90170732]
[1744538328479,6.88,131.42,131.36,19.0316]
[1744538328864,81.03,131.47,131.37,6.69756157]
[1744538329061,81.03,131.47,131.38,1.5104]
[1744538329290,81.03,131.47,131.39,1.90096305]
[1744538329782,81.03,131.47,131.4,2.52271629]
[1744538330078,88.6364,131.47,131.41,7.6097]
[1744538330678,88.6364,131.47,131.42,1.90096305]
[1744538331783,88.6364,131.47,131.41,7.6097]
[1744538332080,88.6364,131.47,131.39,26.6376]
[1744538332778,88.6364,131.47,131.4,4.42662337]
[1744538333158,88.6364,131.47,131.41,7.6097]
[1744538333865,81.03,131.47,131.41,7.6097]
[1744538335180,81.03,131.47,131.4,19.0244]
[1744538335481,81.03,131.47,131.41,1.90103787]
[1744538336270,88.6363,131.47,131.41,1.90103787]
[1744538336668,88.6363,131.47,131.42,1.90103787]
[1744538337281,88.6363,131.47,131.42,9.51003787]
[1744538338080,88.6363,131.47,131.42,7.609]
[1744538338284,88.6363,131.47,131.39,19.0273]
[1744538338674,81.0,131.46,131.38,1.5104]
[1744538338870,6.9,131.45,131.38,1.5104]
[1744538339075,20.30024886,131.44,131.39,4.43108147]
[1744538339265,7.6086,131.43,131.39,4.43108147]
[1744538339676,7.6086,131.43,131.4,1.90111648]
[1744538340696,7.6086,131.43,131.39,1.90111648]
[1744538344494,1.6506,131.44,131.39,9.51181648]
[1744538344889,9.2587,131.44,131.4,1.90111648]
[1744538345282,14.5077,131.45,131.4,9.51131648]
[1744538346185,14.5077,131.45,131.41,1.90111648]
[1744538347195,14.5077,131.45,131.4,1.90111648]
[1744538347692,14.5077,131.45,131.4,9.51131648]
[1744538348386,14.5077,131.45,131.41,1.90111648]
[1744538349400,14.5077,131.45,131.42,1.90111648]
[1744538350893,14.5077,131.45,131.43,1.90111648]
[1744538351823,1.6154,131.43,131.35,39.6598513]
[1744538352601,1.6154,131.43,131.36,1.90152349]
[1744538352995,7.6091,131.42,131.37,10.14678997]
[1744538353609,7.6091,131.42,131.38,1.90152349]
[1744538354188,7.6091,131.42,131.38,9.51292349]
[1744538354388,7.6091,131.42,131.39,1.90152349]
[1744538355095,7.6091,131.42,131.38,1.90152349]
[1744538356508,7.6091,131.42,131.38,9.51302349]
[1744538356811,7.6091,131.42,131.38,1.90152349]
[1744538358609,7.6103,131.4,131.38,1.90152349]
[1744538359108,7.6103,131.4,131.36,1.90152349]
[1744538359476,18.64964886,131.42,131.36,1.90152349]
[1744538359677,45.28164886,131.42,131.36,1.90152349]
[1744538360278,45.28164886,131.42,131.37,1.90152349]
[1744538360883,18.64964886,131.4,131.37,1.90152349]
[1744538361278,18.64964886,131.4,131.36,1.90152349]
[1744538362006,18.64964886,131.38,131.36,1.90152349]
[1744538362210,82.6201,131.39,131.36,1.90152349]
[1744538362512,6.88,131.4,131.35,1.90152349]
[1744538362990,14.4907,131.4,131.36,2.53567956]
[1744538363196,14.4907,131.4,131.37,1.90152349]
[1744538363402,99.64964886,131.39,131.37,1.90152349]
[1744538363706,81.0,131.39,131.37,1.90152349]
[1744538364413,6.88,131.44,131.36,1.90152349]
[1744538364596,6.88,131.44,131.36,8.31182349]
[1744538364912,6.88,131.44,131.37,2.53601473]
[1744538365107,14.4882,131.44,131.38,7.6115]
[1744538366008,14.4882,131.44,131.39,1.90152349]
[1744538366896,14.4882,131.44,131.39,9.51222349]
[1744538367404,14.4882,131.44,131.39,1.90152349]
[1744538367706,18.64964886,131.43,131.4,1.90152349]
[1744538368208,81.42648471,131.42,131.4,1.90152349]
[1744538368404,81.42648471,131.42,131.34,1.5686]
[1744538368580,81.42648471,131.42,131.33,13.8787]
[1744538368581,7.6109,131.39,131.33,13.8787]
[1744538369006,7.6109,131.39,131.34,2.53590818]
[1744538369200,7.6109,131.39,131.34,4.43778325]
[1744538370013,7.6109,131.39,131.35,4.43778325]
[1744538370699,7.6109,131.39,131.35,1.90187507]
[1744538371008,7.6109,131.39,131.36,1.90187507]
[1744538372085,14.4909,131.39,131.36,1.90187507]
[1744538372282,14.4909,131.39,131.34,1.90187507]
[1744538372491,6.88,131.39,131.34,9.51537507]
[1744538373091,6.88,131.39,131.35,1.90187507]
[1744538373298,6.88,131.39,131.36,2.53523038]
[1744538373606,6.88,131.39,131.36,10.14763038]
[1744538373800,81.0,131.41,131.36,10.14763038]
[1744538373999,81.0,131.41,131.37,4.43710545]
[1744538374617,6.88,131.43,131.37,4.43710545]
[1744538374921,6.88,131.43,131.38,2.53523038]
[1744538375202,6.88,131.43,131.39,1.90187507]
[1744538375707,6.88,131.43,131.39,9.51267507]
[1744538376010,14.4887,131.43,131.4,1.90187507]
[1744538376830,1.627,131.45,131.41,1.90187507]
[1744538377002,81.0,131.46,131.41,1.90187507]
[1744538377310,88.6069,131.46,131.41,1.90187507]
[1744538377513,81.0,131.46,131.41,1.90187507]
[1744538377692,81.0,131.46,131.42,1.90187507]
[1744538377887,81.0,131.46,131.42,9.51097507]
[1744538378591,88.607,131.46,131.42,1.90187507]
[1744538378799,88.607,131.46,131.43,1.90187507]
[1744538379616,88.607,131.46,131.39,7.6103]
[1744538380508,88.607,131.46,131.37,26.6419]
[1744538380715,88.607,131.46,131.4,4.43459374]
[1744538381206,88.607,131.46,131.4,1.90124878]
[1744538381411,18.64964886,131.45,131.41,1.90124878]
[1744538382218,88.607,131.46,131.41,1.90124878]
[1744538382394,81.0,131.46,131.42,1.90124878]
[1744538382589,88.6069,131.46,131.42,1.90124878]
[1744538383100,81.0,131.46,131.43,1.90124878]
[1744538384118,88.607,131.46,131.41,7.6095]
[1744538384509,88.607,131.46,131.42,2.53309569]
[1744538385117,88.607,131.46,131.41,7.6095]
[1744538385493,88.607,131.46,131.42,1.90103782]
[1744538386803,88.607,131.46,131.39,7.6107]
[1744538387519,107.6241,131.46,131.37,26.6421]
[1744538387823,107.6241,131.46,131.38,2.53421235]
[1744538388024,107.6241,131.46,131.38,4.43539332]
[1744538388425,107.6241,131.46,131.39,2.53421235]
[1744538388910,107.6241,131.46,131.39,10.14451235]
[1744538389111,107.6241,131.46,131.4,1.90118097]
[1744538389312,114.5041,131.46,131.4,1.90118097]
[1744538390025,114.5041,131.46,131.41,1.90118097]
[1744538390403,18.64964886,131.45,131.41,1.90118097]
[1744538391018,18.64964886,131.45,131.39,9.51198097]
[1744538392025,7.608,131.44,131.39,9.51198097]
[1744538392225,7.608,131.44,131.4,1.90118097]
[1744538393428,7.6074,131.45,131.4,1.90118097]
[1744538396726,26.626,131.45,131.4,1.90118097]
[1744538397433,26.626,131.45,131.39,1.90118097]
[1744538397924,26.626,131.45,131.4,2.53417221]
[1744538398223,26.626,131.45,131.41,1.90118097]
[1744538399222,26.626,131.45,131.38,1.90118097]
[1744538399735,26.626,131.45,131.39,2.53384737]
[1744538400313,81.0,131.44,131.38,1.90118097]
[1744538400812,81.0,131.44,131.39,1.90118097]
[1744538401127,81.0,131.44,131.38,4.43396563]
[1744538401916,26.626,131.45,131.38,4.43396563]
[1744538401917,81.0,131.43,131.38,1.90118097]
[1744538402331,7.6091,131.42,131.37,1.90118097]
[1744538402637,26.632,131.42,131.37,1.90118097]
[1744538402833,106.52964886,131.41,131.37,1.90118097]
[1744538403030,18.64964886,131.39,131.37,1.90118097]
[1744538403229,81.0,131.38,131.37,1.90118097]
[1744538403549,81.0,131.38,131.35,1.90118097]
[1744538403723,81.0,131.38,131.35,9.51428097]
[1744538403918,6.88,131.41,131.35,9.51428097]
[1744538404124,6.88,131.41,131.36,7.8547]
[1744538404430,88.6094,131.42,131.37,2.53097142]
[1744538404736,88.6094,131.42,131.38,1.90118097]
[1744538405326,99.933972,131.41,131.38,1.90118097]
[1744538405556,6.88,131.4,131.38,1.90118097]
[1744538406046,18.933972,131.39,131.35,1.90118097]
[1744538406249,81.0,131.38,131.35,1.90118097]
[1744538406815,7.612,131.37,131.35,1.90118097]
[1744538408536,7.612,131.37,131.34,0.063]
[1744538411020,81.0,131.36,131.34,0.063]
[1744538411227,81.0,131.35,131.34,0.063]
[1744538411554,87.88,131.35,131.34,0.063]
[1744538412457,95.4932,131.35,131.34,0.063]
[1744538413324,87.88,131.35,131.34,0.063]
[1744538413855,18.933972,131.34,131.33,0.063]
[1744538414052,0.14216157,131.33,131.3,0.063]
[1744538414361,19.07613357,131.34,131.3,0.063]
[1744538414362,45.07613357,131.31,131.3,0.063]
[1744538414657,100.07613357,131.3,131.29,0.0001]
[1744538414850,25.95613357,131.3,131.29,0.0001]
[1744538415363,1.6513,131.29,131.28,0.0001]
[1744538415524,44.933972,131.26,131.25,11.60809953]
[1744538415726,0.42648471,131.28,131.25,11.60809953]
[1744538415935,18.933972,131.28,131.25,0.063]
[1744538416957,18.933972,131.26,131.25,0.063]
[1744538417155,45.07613357,131.26,131.25,0.063]
[1744538418752,52.69453357,131.26,131.25,0.063]
[1744538419463,26.552372,131.26,131.25,0.063]
[1744538420951,7.6178,131.27,131.25,0.063]
[1744538421753,18.79181043,131.26,131.25,0.063]
[1744538421935,26.552372,131.26,131.25,0.063]
[1744538422255,0.14216157,131.25,131.24,0.063]
[1744538422460,7.02216157,131.25,131.24,0.063]
[1744538423260,14.499,131.25,131.24,0.063]
[1744538423764,6.88,131.25,131.24,0.063]
[1744538424463,7.6181,131.27,131.24,0.063]
[1744538425441,18.79181043,131.27,131.24,0.063]
[1744538425845,6.88,131.29,131.24,0.063]
[1744538426044,81.0,131.31,131.25,26.0]
[1744538426251,88.6157,131.31,131.25,26.0]
[1744538426451,88.6157,131.31,131.24,0.063]
[1744538427643,81.0,131.36,131.27,1.5791]
[1744538428053,81.0,131.36,131.29,26.0]
[1744538428253,6.88,131.39,131.33,26.0]
[1744538428561,6.88,131.39,131.34,1.5791]
[1744538428854,0.03,131.37,131.34,1.5791]
[1744538429058,0.03,131.37,131.34,27.5791]
[1744538429245,0.03,131.37,131.35,6.2077]
[1744538429645,0.03,131.37,131.35,13.8208]
[1744538430938,0.03,131.37,131.35,6.2077]
[1744538431448,0.03,131.37,131.35,13.8208]
[1744538432559,81.0,131.41,131.38,26.0]
[1744538432759,6.88,131.43,131.38,26.0]
[1744538433065,18.67964886,131.45,131.38,26.0]
[1744538433446,0.03,131.45,131.38,26.0]
[1744538433660,26.28714886,131.45,131.39,33.6109]
[1744538433850,0.03,131.45,131.39,33.6109]
[1744538434253,18.67964886,131.45,131.39,33.6109]
[1744538434660,0.28432314,131.44,131.37,7.6117]
[1744538435846,7.89252314,131.44,131.37,7.6117]
[1744538436046,0.28432314,131.44,131.37,7.6117]
[1744538436269,0.03,131.45,131.37,26.6419]
[1744538436470,0.14216157,131.44,131.37,7.6117]
[1744538437067,18.933972,131.39,131.31,6.4518]
[1744538437366,18.933972,131.39,131.32,7.6146]
[1744538437872,17.433972,131.37,131.31,6.4518]
[1744538438373,81.14216157,131.36,131.31,6.4518]
[1744538438554,81.14216157,131.36,131.3,1.5718]
[1744538439766,81.0,131.36,131.33,26.0]
[1744538439961,25.56964886,131.4,131.34,7.6138]
[1744538440268,6.92,131.4,131.35,6.4518]
[1744538440572,14.5303,131.4,131.35,6.4518]
[1744538440768,6.92,131.4,131.35,6.4518]
[1744538442059,13.0306,131.4,131.35,6.4518]
[1744538442462,0.42648471,131.39,131.32,7.6148]
[1744538443274,5.42,131.4,131.32,26.6522]
[1744538443574,0.42648471,131.39,131.32,7.6148]
[1744538443957,13.0307,131.4,131.32,7.6148]
[1744538444382,5.42,131.4,131.32,26.6522]
[1744538444677,13.0303,131.4,131.32,26.6522]
[1744538444887,5.42,131.4,131.33,0.42648471]
[1744538445078,81.0,131.42,131.35,26.0]
[1744538445646,88.6092,131.42,131.35,26.0]
[1744538445850,81.0,131.42,131.35,26.0]
[1744538446281,81.0,131.42,131.33,0.42648471]
[1744538446282,81.0,131.42,131.36,7.6126]
[1744538446579,88.6092,131.42,131.36,7.6126]
[1744538447578,81.0,131.42,131.37,7.6371]
[1744538448257,81.0,131.42,131.38,7.6115]
[1744538449979,88.6093,131.42,131.37,7.6371]
[1744538450162,26.25954886,131.41,131.37,7.6371]
[1744538450667,26.25954886,131.41,131.33,1.5047]
[1744538450855,26.25954886,131.41,131.35,26.0]
[1744538452288,26.25954886,131.41,131.35,33.6126]
[1744538456288,18.64964886,131.39,131.33,1.5047]
[1744538456700,18.64964886,131.39,131.33,9.119]
[1744538457292,81.0,131.4,131.33,9.119]
[1744538457995,26.26054886,131.39,131.33,9.119]
[1744538458190,18.64964886,131.39,131.33,9.119]
[1744538458400,81.0,131.4,131.33,9.119]
[1744538458775,81.0,131.4,131.33,28.155]
[1744538458976,88.6103,131.4,131.33,9.119]
[1744538459175,18.64964886,131.39,131.33,9.119]
[1744538459596,25.56964886,131.39,131.33,1.5047]
[1744538459771,25.56964886,131.39,131.33,9.1189]
[1744538459968,7.6115,131.38,131.33,1.5047]
[1744538460191,18.64964886,131.37,131.33,1.5047]
[1744538460581,18.64964886,131.37,131.33,9.119]
[1744538460786,99.64964886,131.37,131.33,1.5047]
[1744538461205,7.6115,131.38,131.33,1.5047]
[1744538461708,7.6115,131.38,131.33,9.119]
[1744538462314,7.6115,131.38,131.33,1.5047]
[1744538462682,7.6115,131.38,131.33,9.119]
[1744538462993,14.5311,131.39,131.33,9.1188]
[1744538463310,14.531,131.39,131.33,9.1188]
[1744538463708,0.42648471,131.38,131.33,1.5047]
[1744538464008,81.0,131.37,131.33,1.5047]
[1744538464306,88.6126,131.37,131.33,1.5047]
[1744538465810,0.42648471,131.36,131.32,6.1324]
[1744538466381,7.6132,131.35,131.3,1.6139]
[1744538466599,0.42648471,131.34,131.3,1.6139]
[1744538466809,0.42648471,131.32,131.29,0.063]
[1744538467008,81.0,131.33,131.29,0.063]
[1744538467310,81.0,131.33,131.29,7.6795]
[1744538468184,7.14,131.37,131.3,6.5485]
[1744538468392,7.14,131.37,131.31,7.6155]
[1744538470299,0.42648471,131.36,131.3,14.1645]
[1744538470691,26.68883357,131.36,131.3,6.5485]
[1744538470877,0.42648471,131.34,131.29,0.063]
[1744538471292,19.07613357,131.34,131.29,0.063]
[1744538472607,81.0,131.33,131.29,0.063]
[1744538472807,0.14216157,131.37,131.29,0.063]
[1744538473009,0.14216157,131.37,131.3,1.90220924]
[1744538473502,0.14216157,131.37,131.31,2.49524942]
[1744538473714,0.28432314,131.34,131.31,2.49524942]
[1744538473893,19.07613357,131.32,131.31,2.49524942]
[1744538474383,88.14,131.33,131.29,0.063]
[1744538474384,45.07613357,131.3,131.29,0.063]
[1744538474592,52.69223357,131.3,131.29,0.063]
[1744538474922,18.79181043,131.25,131.24,0.063]
[1744538475217,52.21613357,131.25,131.24,0.063]
[1744538476809,59.83513357,131.25,131.24,0.063]
[1744538477905,59.83513357,131.25,131.24,0.0001]
[1744538478083,60.83513357,131.25,131.24,0.0001]
[1744538478284,45.07613357,131.22,131.2,0.063]
[1744538478687,52.69683357,131.22,131.2,0.063]
[1744538479094,0.42648471,131.22,131.2,0.063]
[1744538479425,33.56648471,131.22,131.2,0.063]
[1744538481310,7.14,131.22,131.2,0.063]
[1744538481803,30.1547498,131.3,131.21,6.4571]
[1744538482005,7.6149,131.32,131.22,18.64964886]
[1744538482186,7.16,131.33,131.22,18.64964886]
[1744538482382,0.42648471,131.32,131.22,18.64964886]
[1744538482611,81.0,131.31,131.22,18.64964886]
[1744538482797,81.0,131.31,131.23,26.6707]
[1744538486005,81.0,131.31,131.24,18.64964886]
[1744538486600,81.0,131.31,131.23,26.6707]
[1744538486803,81.0,131.31,131.24,18.64964886]
[1744538487199,81.0,131.31,131.25,7.619]
[1744538488109,81.0,131.31,131.25,26.6666]
[1744538489325,81.0,131.36,131.28,18.64964886]
[1744538489689,81.0,131.36,131.27,26.6625]
[1744538490132,0.42648471,131.35,131.27,26.6625]
[1744538490415,81.0,131.36,131.28,18.64964886]
[1744538491312,81.0,131.36,131.29,26.6585]
[1744538491827,26.073972,131.39,131.3,18.64964886]
[1744538491828,7.28216157,131.39,131.3,18.64964886]
[1744538492496,14.89316157,131.39,131.3,18.64964886]
[1744538493093,0.42648471,131.38,131.29,26.6585]
[1744538493298,0.42648471,131.36,131.28,7.6173]
[1744538493895,0.42648471,131.36,131.28,26.6605]
[1744538494292,81.0,131.37,131.29,18.64964886]
[1744538494511,81.0,131.37,131.31,6.2114]
[1744538495305,81.0,131.37,131.32,7.6149]
[1744538495705,81.0,131.37,131.33,20.30734886]
[1744538496524,7.14,131.42,131.34,0.28432314]
[1744538497025,0.03,131.43,131.34,0.28432314]
[1744538497411,7.6387,131.43,131.35,7.6132]
[1744538498016,0.14216157,131.42,131.35,7.6132]
[1744538498195,0.42648471,131.42,131.35,7.6132]
[1744538498999,7.6097,131.41,131.34,7.6138]
[1744538500818,7.6097,131.41,131.33,9.2719]
[1744538500819,81.42648471,131.4,131.33,9.2719]
[1744538501195,7.24,131.39,131.33,1.6577]
[1744538502097,100.07613357,131.38,131.31,6.2114]
[1744538502297,0.42648471,131.36,131.31,6.2114]
[1744538502717,8.03958471,131.36,131.31,6.2114]
[1744538503424,0.42648471,131.34,131.29,1.6433]
[1744538503630,81.0,131.33,131.29,1.6433]
[1744538503929,81.0,131.33,131.28,6.2887]
[1744538504807,88.6147,131.33,131.28,6.2887]
[1744538505125,81.42648471,131.32,131.25,7.932]
[1744538505320,99.64964886,131.31,131.25,6.2887]
[1744538506422,81.0,131.31,131.25,13.9074]
[1744538506933,88.616,131.31,131.25,13.9074]
[1744538509027,81.0,131.31,131.25,13.9074]
[1744538509631,88.6156,131.31,131.25,13.9074]
[1744538510334,81.42648471,131.3,131.25,6.2887]
[1744538510515,0.42648471,131.28,131.22,14.1993]
[1744538511031,8.04418471,131.28,131.22,14.1993]
[1744538511228,8.04418471,131.28,131.22,6.5788]
[1744538511229,81.0,131.27,131.22,6.5788]
[1744538513031,88.6184,131.27,131.22,6.5788]
[1744538514730,0.42648471,131.26,131.22,6.5788]
[1744538515121,0.42648471,131.26,131.21,0.063]
[1744538515329,19.07613357,131.26,131.21,0.063]
[1744538516212,0.42648471,131.24,131.21,0.063]
[1744538516409,81.42648471,131.24,131.21,0.063]
[1744538518133,89.04638471,131.24,131.21,0.063]
[1744538518332,0.42648471,131.22,131.21,0.063]
[1744538518539,7.66648471,131.22,131.21,0.063]
[1744538520716,15.28718471,131.22,131.21,0.063]
[1744538522745,33.93683357,131.22,131.21,0.063]
[1744538523120,15.28718471,131.22,131.21,0.063]
[1744538524222,7.24,131.22,131.21,0.063]
[1744538525042,14.8607,131.22,131.21,0.063]
[1744538525245,7.24,131.22,131.21,0.063]
[1744538525740,18.64964886,131.25,131.21,0.063]
[1744538525741,7.24,131.26,131.21,0.063]
[1744538525939,7.24,131.26,131.21,1.6278]
[1744538526241,7.24,131.26,131.21,9.2486]
[1744538526627,7.24,131.26,131.22,6.6253]
[1744538527023,0.03,131.37,131.28,0.14216157]
[1744538527341,0.03,131.37,131.32,18.64964886]
[1744538527534,0.03,131.37,131.3,18.933972]
[1744538528248,0.03,131.37,131.32,18.64964886]
[1744538529232,0.03,131.37,131.33,7.6144]
[1744538530647,0.03,131.37,131.3,7.6161]
[1744538530947,81.0,131.36,131.3,7.6161]
[1744538531352,81.0,131.36,131.3,19.0403]
[1744538532425,81.0,131.36,131.29,7.6167]
[1744538532626,0.42648471,131.35,131.29,7.6167]
[1744538533351,81.0,131.34,131.29,7.6167]
[1744538533646,0.42648471,131.33,131.28,7.6173]
[1744538533853,81.0,131.32,131.27,9.1825]
[1744538534955,88.615,131.32,131.27,9.1825]
[1744538535357,81.0,131.32,131.27,9.1825]
[1744538535539,88.6151,131.32,131.27,9.1825]
[1744538535739,88.6151,131.32,131.27,7.6177]
[1744538536860,8.04208471,131.31,131.26,14.2435]
[1744538537159,0.42648471,131.31,131.26,14.2435]
[1744538537870,0.42648471,131.29,131.24,7.6194]
[1744538538037,81.0,131.28,131.23,7.62]
[1744538538237,80.92254378,131.28,131.23,7.62]
[1744538538454,7.54648471,131.29,131.22,6.4001]
[1744538538455,81.34902849,131.27,131.22,6.4001]
[1744538538843,88.96712849,131.27,131.22,6.4001]
[1744538539044,99.57219264,131.26,131.21,0.063]
[1744538539238,0.42648471,131.24,131.21,0.063]
[1744538539439,7.54648471,131.24,131.21,0.063]
[1744538539844,7.12,131.24,131.21,0.063]
[1744538540565,7.12,131.24,131.21,7.6842]
[1744538541160,7.12,131.24,131.21,0.063]
[1744538541744,0.42648471,131.23,131.21,0.063]
[1744538541987,7.12,131.24,131.21,0.063]
[1744538544272,81.34902849,131.25,131.21,0.063]
[1744538545240,88.96812849,131.25,131.21,0.063]
[1744538545445,0.42648471,131.24,131.21,0.063]
[1744538545865,45.07613357,131.22,131.21,0.063]
[1744538546864,52.69683357,131.22,131.21,0.063]
[1744538547370,34.04718471,131.22,131.21,0.063]
[1744538547868,26.0,131.23,131.21,0.063]
[1744538549177,33.6202,131.23,131.21,0.063]
[1744538550043,0.42648471,131.22,131.21,0.063]
[1744538551045,8.04718471,131.22,131.21,0.063]
[1744538552253,7.54718471,131.22,131.21,0.063]
[1744538554163,7.97366942,131.22,131.21,0.063]
[1744538555173,26.62331828,131.22,131.21,0.063]
[1744538556063,25.91181043,131.27,131.21,0.063]
[1744538556474,0.28432314,131.26,131.21,0.063]
[1744538556677,25.91181043,131.27,131.21,0.063]
[1744538556862,0.28432314,131.26,131.21,0.063]
[1744538557062,25.91181043,131.27,131.21,0.063]
[1744538558171,7.6186,131.26,131.21,0.063]
[1744538558378,0.28432314,131.25,131.21,0.063]
[1744538558975,0.14216157,131.24,131.21,0.063]
[1744538559777,0.28432314,131.23,131.21,0.063]
[1744538560565,7.34432314,131.22,131.21,0.063]
[1744538561075,14.96502314,131.22,131.21,0.063]
[1744538563679,7.34432314,131.22,131.21,0.063]
[1744538564571,26.13613357,131.22,131.21,0.063]
[1744538565179,7.48648471,131.22,131.21,0.063]
[1744538566279,33.75683357,131.22,131.21,0.063]
[1744538573178,0.42648471,131.21,131.2,0.063]
[1744538573390,19.07613357,131.21,131.2,0.063]
[1744538573905,49.57743357,131.21,131.2,0.0001]
[1744538574083,19.07613357,131.2,131.19,0.0001]
[1744538574278,26.14216157,131.14,131.13,0.063]
[1744538574501,52.13613357,131.14,131.13,0.063]
[1744538574994,33.48648471,131.14,131.13,0.063]
[1744538575494,18.933972,131.17,131.13,0.063]
[1744538575690,0.14216157,131.16,131.13,0.063]
[1744538576205,0.14216157,131.15,131.13,0.063]
[1744538576404,0.14216157,131.17,131.13,0.063]
[1744538576701,7.06,131.18,131.14,8.0802]
[1744538577509,81.0,131.17,131.14,8.0802]
[1744538578273,81.0,131.17,131.15,7.6248]
[1744538580301,81.0,131.17,131.14,15.7054]
[1744538583708,81.0,131.17,131.14,6.5678]
[1744538583876,81.0,131.17,131.13,0.063]
[1744538584081,88.6237,131.17,131.13,0.063]
[1744538585213,0.14216157,131.16,131.13,0.063]
[1744538585390,0.42648471,131.16,131.13,0.063]
[1744538586620,88.6237,131.17,131.13,0.063]
[1744538586621,81.0,131.17,131.13,0.063]
[1744538587713,88.6238,131.17,131.13,0.063]
[1744538589017,0.14216157,131.16,131.13,0.063]
[1744538589315,0.14216157,131.14,131.13,0.063]
[1744538589613,81.0,131.15,131.13,0.063]
[1744538590684,88.6008,131.15,131.13,0.063]
[1744538591415,80.976,131.15,131.13,0.063]
[1744538591786,88.601,131.15,131.13,0.063]
[1744538593093,100.05213357,131.14,131.13,0.063]
[1744538593392,26.0,131.11,131.1,0.063]
[1744538593790,7.02,131.12,131.1,0.063]
[1744538596211,14.6467,131.12,131.1,0.063]
[1744538596421,7.02,131.12,131.1,0.063]
[1744538596587,14.6466,131.12,131.1,0.063]
[1744538597815,7.02,131.12,131.1,0.063]
[1744538598016,80.976,131.14,131.1,0.063]
[1744538599715,80.976,131.14,131.11,1.90538246]